fUST/lending_fUST_20250811
["ID","MTS","AMOUNT","RATE_DAILY","PERIOD"]
[378576650,1754915460441,-1632.07,0.00019915,2]
[378576651,1754915460451,-562.65,0.00019915,2]
[378576662,1754915460668,-460.0,0.00019915,2]
[378576663,1754915460678,-460.0,0.00019915,2]
[378576665,1754915460688,-480.88755764,0.00019915,2]
[378576666,1754915460698,-460.0,0.00019915,2]
[378576668,1754915460707,-460.0,0.00019915,2]
[378576669,1754915460717,-300.30860168,0.00019915,2]
[378576671,1754915460728,-460.0,0.00019915,2]
[378576672,1754915460737,-201.65488289,0.00019915,2]
[378576673,1754915460747,-460.0,0.00019915,2]
[378576675,1754915460757,-724.2,0.00019915,2]
[378576676,1754915460767,-460.0,0.00019915,2]
[378576678,1754915460777,-547.38716305,0.00019915,2]
[378576679,1754915460787,-460.0,0.00019915,2]
[378576681,1754915460797,-460.0,0.00019915,2]
[378576682,1754915460807,-460.0,0.00019915,2]
[378576684,1754915460817,-460.0,0.00019915,2]
[378576685,1754915460826,-151.0,0.00019945,2]
[378576686,1754915460835,-151.0,0.00019945,2]
[378576688,1754915460845,-179.92388822,0.00019945,2]
[378576689,1754915460857,-786.783,0.00019989,2]
[378576691,1754915460868,-151.861524,0.0001999,2]
[378576692,1754915460878,-151.0,0.0001999,2]
[378576694,1754915460887,-13657.2892326,0.0001999,2]
[378576695,1754915460897,-234.411761,0.0001999,2]
[378576697,1754915460908,-234.411761,0.0001999,2]
[378576698,1754915460923,-151.0,0.0001999,2]
[378576699,1754915460932,-151.0,0.0001999,2]
[378576701,1754915460942,-9403.67305331,0.0002,2]
[378576702,1754915460951,-224.36982195,0.0002,20]
[378576704,1754915460962,-152.29667673,0.0002,7]
[378576705,1754915460972,-364.11032064,0.0002,2]
[378576707,1754915460981,-12003.10339825,0.0002,2]
[378576708,1754915460992,-7237.17604782,0.0002,10]
[378576710,1754915461003,-17001.48056737,0.0002,2]
[378576711,1754915461013,-191.27928345,0.0002,2]
[378576712,1754915461023,-4000.0,0.0002,4]
[378576714,1754915461033,-460.0,0.00020013,2]
[378576715,1754915461043,-460.0,0.00020013,2]
[378576717,1754915461053,-460.0,0.00020013,2]
[378576718,1754915461063,-783.23,0.00020013,2]
[378576720,1754915461073,-965.6,0.00020013,2]
[378576721,1754915461084,-460.0,0.00020013,2]
[378576723,1754915461094,-460.0,0.00020013,2]
[378576724,1754915461104,-460.0,0.00020013,2]
[378576725,1754915461115,-460.0,0.00020013,2]
[378576727,1754915461126,-460.0,0.00020013,2]
[378576728,1754915461136,-460.0,0.00020013,2]
[378576730,1754915461147,-460.0,0.00020013,2]
[378576731,1754915461157,-460.0,0.00020013,2]
[378576733,1754915461167,-460.0,0.00020013,2]
[378576734,1754915461177,-460.0,0.00020013,2]
[378576736,1754915461187,-460.0,0.00020013,2]
[378576737,1754915461197,-460.0,0.00020013,2]
[378576738,1754915461207,-460.0,0.00020013,2]
[378576740,1754915461217,-460.0,0.00020013,2]
[378576741,1754915461227,-460.0,0.00020013,2]
[378576743,1754915461238,-461.27211757,0.00020013,2]
[378576744,1754915461248,-496.56246722,0.00020013,2]
[378576746,1754915461257,-460.0,0.00020013,2]
[378576747,1754915461267,-151.0,0.00020013,2]
[378576749,1754915461277,-500.0,0.00020013,2]
[378576750,1754915461287,-460.0,0.00020013,2]
[378576751,1754915461296,-460.0,0.00020013,2]
[378576753,1754915461306,-460.0,0.00020013,2]
[378576754,1754915461316,-460.0,0.00020013,2]
[378576756,1754915461326,-460.0,0.00020013,2]
[378576757,1754915461337,-569.52717049,0.00020013,2]
[378576759,1754915461347,-460.0,0.00020013,2]
[378576760,1754915461358,-460.0,0.00020013,2]
[378576761,1754915461368,-460.0,0.00020013,2]
[378576763,1754915461378,-460.0,0.00020013,2]
[378576764,1754915461388,-460.0,0.00020013,2]
[378576766,1754915461398,-504.22,0.00020013,2]
[378576767,1754915461408,-460.0,0.00020013,2]
[378576769,1754915461419,-1343.64,0.00020013,2]
[378576770,1754915461429,-151.0,0.00020013,2]
[378576771,1754915461439,-578.05,0.00020013,2]
[378576773,1754915461449,-460.0,0.00020013,2]
[378576774,1754915461460,-460.0,0.00020013,2]
[378576776,1754915461470,-460.0,0.00020013,2]
[378576777,1754915461479,-460.0,0.00020013,2]
[378576779,1754915461489,-460.0,0.00020013,2]
[378576780,1754915461499,-460.0,0.00020013,2]
[378576782,1754915461509,-731.21,0.00020013,2]
[378576783,1754915461519,-460.0,0.00020013,2]
[378576784,1754915461529,-460.0,0.00020013,2]
[378576786,1754915461540,-676.34,0.00020013,2]
[378576787,1754915461550,-460.0,0.00020013,2]
[378576789,1754915461560,-460.0,0.00020013,2]
[378576790,1754915461571,-522.32,0.00020013,2]
[378576792,1754915461581,-460.0,0.00020013,2]
[378576793,1754915461592,-460.0,0.00020013,2]
[378576795,1754915461604,-460.0,0.00020013,2]
[378576796,1754915461614,-460.0,0.00020013,2]
[378576797,1754915461624,-212.43730442,0.00020013,2]
[378576799,1754915461634,-460.0,0.00020013,2]
[378576800,1754915461644,-1388.82,0.00020013,2]
[378576802,1754915461655,-460.0,0.00020013,2]
[378576803,1754915461665,-460.0,0.00020013,2]
[378576805,1754915461675,-460.0,0.00020013,2]
[378576806,1754915461686,-460.0,0.00020013,2]
[378576808,1754915461695,-856.47,0.00020013,2]
[378576809,1754915461705,-460.0,0.00020013,2]
[378576810,1754915461715,-1001.49,0.00020013,2]
[378576812,1754915461726,-485.52889551,0.00020013,2]
[378576813,1754915461736,-151.0,0.00020013,2]
[378576815,1754915461747,-460.0,0.00020013,2]
[378576816,1754915461757,-460.0,0.00020013,2]
[378576818,1754915461767,-460.0,0.00020013,2]
[378576819,1754915461777,-829.52,0.00020013,2]
[378576820,1754915461787,-1619.3,0.00020013,2]
[378576822,1754915461800,-493.71,0.00020013,2]
[378576823,1754915461811,-460.0,0.00020013,2]
[378576825,1754915461821,-460.0,0.00020013,2]
[378576826,1754915461832,-460.0,0.00020013,2]
[378576828,1754915461843,-460.0,0.00020013,2]
[378576829,1754915461854,-1212.26,0.00020013,2]
[378576831,1754915461864,-460.0,0.00020013,2]
[378576832,1754915461875,-472.10543628,0.00020013,2]
[378576833,1754915461884,-505.88,0.00020013,2]
[378576835,1754915461895,-460.0,0.00020013,2]
[378576836,1754915461905,-487.13,0.00020013,2]
[378576838,1754915461918,-460.0,0.00020013,2]
[378576839,1754915461928,-460.0,0.00020013,2]
[378576841,1754915461938,-656.66,0.00020013,2]
[378576842,1754915461948,-460.0,0.00020013,2]
[378576844,1754915461960,-586.96299819,0.00020013,2]
[378576845,1754915461970,-460.0,0.00020013,2]
[378576846,1754915461980,-460.0,0.00020013,2]
[378576848,1754915461991,-460.0,0.00020013,2]
[378576849,1754915462001,-516.16,0.00020013,2]
[378576851,1754915462011,-460.0,0.00020013,2]
[378576852,1754915462021,-460.0,0.00020013,2]
[378576854,1754915462030,-460.0,0.00020013,2]
[378576855,1754915462040,-460.0,0.00020013,2]
[378576856,1754915462049,-460.0,0.00020013,2]
[378576858,1754915462060,-460.0,0.00020013,2]
[378576859,1754915462069,-460.0,0.00020013,2]
[378576861,1754915462080,-685.16,0.00020013,2]
[378576862,1754915462090,-460.0,0.00020013,2]
[378576864,1754915462099,-460.0,0.00020013,2]
[378576865,1754915462112,-790.7,0.00020013,2]
[378576867,1754915462121,-460.0,0.00020013,2]
[378576868,1754915462132,-460.0,0.00020013,2]
[378576869,1754915462142,-460.0,0.00020013,2]
[378576871,1754915462151,-855.15,0.00020013,2]
[378576872,1754915462161,-460.0,0.00020013,2]
[378576873,1754915462171,-603.45,0.00020013,2]
[378576874,1754915462181,-1640.73,0.00020013,2]
[378576875,1754915462191,-738.19,0.00020013,2]
[378576876,1754915462200,-460.0,0.00020013,2]
[378576877,1754915462210,-460.0,0.00020013,2]
[378576878,1754915462219,-151.0,0.00020013,2]
[378576879,1754915462230,-460.0,0.00020013,2]
[378576880,1754915462448,-545.13570186,0.00020013,2]
[378576881,1754915462457,-1773.37,0.00020013,2]
[378576882,1754915462467,-460.0,0.00020013,2]
[378576883,1754915462476,-1415.03,0.00020013,2]
[378576884,1754915462485,-232.5585651,0.00020013,2]
[378576885,1754915462495,-460.0,0.00020013,2]
[378576886,1754915462504,-987.91,0.00020013,2]
[378576887,1754915462514,-460.0,0.00020013,2]
[378576888,1754915462524,-460.0,0.00020013,2]
[378576889,1754915462533,-460.0,0.00020013,2]
[378576890,1754915462543,-170.88840118,0.00020013,2]
[378576891,1754915462552,-460.0,0.00020013,2]
[378576892,1754915462561,-402.5526299,0.00020013,2]
[378576893,1754915462571,-1898.2,0.00020013,2]
[378576894,1754915462581,-438.44634756,0.00020013,2]
[378576895,1754915462590,-822.08,0.00020013,2]
[378576896,1754915462599,-460.0,0.00020013,2]
[378576897,1754915462609,-460.0,0.00020013,2]
[378576898,1754915462618,-460.0,0.00020013,2]
[378576899,1754915462628,-151.0,0.00020013,2]
[378576900,1754915462637,-460.0,0.00020013,2]
[378576901,1754915462647,-476.92,0.00020013,2]
[378576902,1754915462656,-460.0,0.00020013,2]
[378576903,1754915462665,-460.0,0.00020013,2]
[378576904,1754915462675,-1167.71,0.00020013,2]
[378576905,1754915462685,-460.0,0.00020013,2]
[378576906,1754915462694,-330.58120322,0.00020013,2]
[378576907,1754915462703,-460.0,0.00020013,2]
[378576908,1754915462713,-460.0,0.00020013,2]
[378576909,1754915462723,-460.0,0.00020013,2]
[378576910,1754915462732,-543.4,0.00020013,2]
[378576911,1754915462742,-460.0,0.00020013,2]
[378576912,1754915462752,-460.0,0.00020013,2]
[378576913,1754915462761,-382.458308,0.00020013,2]
[378576914,1754915462771,-382.458308,0.00020013,2]
[378576915,1754915462780,-656.88,0.00020013,2]
[378576916,1754915462789,-578.06,0.00020013,2]
[378576917,1754915462799,-775.82,0.00020013,2]
[378576918,1754915462808,-738.81,0.00020013,2]
[378576919,1754915462817,-860.33,0.00020013,2]
[378576920,1754915462826,-151.0,0.00020013,2]
[378576921,1754915462835,-905.18,0.00020013,2]
[378576922,1754915462844,-1056.3,0.00020013,2]
[378576923,1754915462855,-460.0,0.00020013,2]
[378576924,1754915462864,-460.0,0.00020013,2]
[378576925,1754915462874,-12761.09,0.00020013,2]
[378576926,1754915462883,-152.026585,0.00020013,2]
[378576927,1754915462892,-704.43,0.00020013,2]
[378576928,1754915462902,-151.0,0.00020014,2]
[378576929,1754915462918,-151.0,0.00020014,2]
[378576930,1754915462929,-151.0,0.00020014,7]
[378576931,1754915462939,-151.0,0.00020014,7]
[378576932,1754915462949,-151.0,0.00020014,7]
[378576933,1754915462959,-152.463393,0.00020014,7]
[378576934,1754915462969,-151.0,0.00020014,2]
[378576935,1754915462979,-460.0,0.00020014,2]
[378576936,1754915462989,-151.0,0.00020014,2]
[378576937,1754915462999,-151.0,0.00020014,2]
[378576938,1754915463009,-460.0,0.00020014,2]
[378576939,1754915463018,-427.31556,0.00020014,2]
[378576940,1754915463028,-427.31556,0.00020014,2]
[378576941,1754915463037,-266.471175,0.00020014,2]
[378576942,1754915463047,-266.471175,0.00020014,2]
[378576943,1754915463057,-151.0,0.00020014,2]
[378576944,1754915463067,-444.56969121,0.00020014,2]
[378576945,1754915463076,-460.0,0.00020014,2]
[378576946,1754915463087,-332.452599,0.00020014,2]
[378576947,1754915463097,-332.452599,0.00020014,2]
[378576948,1754915463108,-460.0,0.00020014,2]
[378576949,1754915463119,-460.0,0.00020014,2]
[378576950,1754915463129,-460.0,0.00020014,2]
[378576951,1754915463140,-460.0,0.00020014,2]
[378576952,1754915463150,-531.13,0.00020014,2]
[378576953,1754915463159,-151.0,0.00020014,2]
[378576954,1754915463169,-460.0,0.00020014,2]
[378576955,1754915463179,-460.0,0.00020014,2]
[378576956,1754915463188,-835.99,0.00020014,2]
[378576957,1754915463198,-460.0,0.00020014,2]
[378576958,1754915463208,-460.0,0.00020014,2]
[378576959,1754915463217,-827.83,0.00020014,2]
[378576960,1754915463227,-460.0,0.00020014,2]
[378576961,1754915463237,-460.0,0.00020014,2]
[378576962,1754915463247,-460.0,0.00020014,2]
[378576963,1754915463258,-463.32804842,0.00020014,2]
[378576964,1754915463268,-460.0,0.00020014,2]
[378576965,1754915463278,-460.0,0.00020014,2]
[378576966,1754915463288,-928.46,0.00020014,2]
[378576967,1754915463298,-592.07,0.00020014,2]
[378576968,1754915463308,-460.0,0.00020014,2]
[378576969,1754915463318,-3875.53,0.00020014,2]
[378576970,1754915463327,-460.0,0.00020014,2]
[378576971,1754915463337,-2004.18,0.00020014,2]
[378576972,1754915463346,-460.0,0.00020014,2]
[378576973,1754915463356,-460.0,0.00020014,2]
[378576974,1754915463366,-651.2,0.00020014,2]
[378576975,1754915463376,-460.0,0.00020014,2]
[378576976,1754915463386,-460.0,0.00020014,2]
[378576977,1754915463395,-460.0,0.00020014,2]
[378576978,1754915463405,-779.52,0.00020014,2]
[378576979,1754915463415,-5048.41,0.00020014,2]
[378576980,1754915463425,-461.56,0.00020014,2]
[378576981,1754915463435,-460.0,0.00020014,2]
[378576982,1754915463445,-468.36191498,0.00020014,2]
[378576983,1754915463455,-460.0,0.00020014,2]
[378576984,1754915463464,-151.0,0.00020014,2]
[378576985,1754915463473,-554.16,0.00020014,2]
[378576986,1754915463483,-151.0,0.00020014,2]
[378576987,1754915463492,-151.0,0.00020014,2]
[378576988,1754915463503,-460.0,0.00020014,2]
[378576989,1754915463512,-644.47,0.00020014,2]
[378576990,1754915463521,-2691.36,0.00020014,2]
[378576991,1754915463531,-1216.52,0.00020014,2]
[378576992,1754915463540,-460.0,0.00020014,2]
[378576993,1754915463549,-1000.0,0.00020021,2]
[378576994,1754915463559,-1075.04094587,0.00020021,2]
[378576995,1754915463569,-1000.0,0.00020021,2]
[378576996,1754915463579,-1000.0,0.00020021,2]
[378576997,1754915463588,-248.07351204,0.00020021,2]
[378576998,1754915463597,-500.0,0.00020021,2]
[378576999,1754915463607,-1000.0,0.00020021,2]
[378577000,1754915463617,-1000.0,0.00020021,2]
[378577001,1754915463627,-1000.0,0.00020021,2]
[378577002,1754915463637,-1000.0,0.00020021,2]
[378577003,1754915463647,-1000.0,0.00020021,2]
[378577004,1754915463656,-1000.0,0.00020021,2]
[378577005,1754915463666,-1000.0,0.00020021,2]
[378577006,1754915463676,-1072.28433155,0.00020021,2]
[378577007,1754915463685,-500.0,0.00020021,2]
[378577008,1754915463695,-1000.0,0.00020021,2]
[378577009,1754915463704,-1000.0,0.00020021,2]
[378577010,1754915463714,-1000.0,0.00020021,2]
[378577011,1754915463724,-1000.0,0.00020021,2]
[378577012,1754915463734,-1000.0,0.00020021,2]
[378577013,1754915463744,-1000.0,0.00020021,2]
[378577014,1754915463754,-1000.0,0.00020021,2]
[378577015,1754915463764,-1000.0,0.00020021,2]
[378577016,1754915463774,-1000.0,0.00020021,2]
[378577017,1754915463784,-1000.0,0.00020021,2]
[378577018,1754915463794,-1000.0,0.00020021,2]
[378577019,1754915463804,-1000.0,0.00020021,2]
[378577020,1754915463814,-501.14541372,0.00020021,2]
[378577021,1754915463824,-1000.0,0.00020021,2]
[378577022,1754915463833,-1000.0,0.00020021,2]
[378577023,1754915463843,-225.87216871,0.00020021,2]
[378577024,1754915463854,-1000.0,0.00020021,2]
[378577025,1754915463864,-1014.81854937,0.00020021,2]
[378577026,1754915463873,-209.01178275,0.00020021,2]
[378577027,1754915463883,-1000.0,0.00020021,2]
[378577028,1754915463893,-1012.61477236,0.00020021,2]
[378577029,1754915463903,-1000.0,0.00020021,2]
[378577030,1754915463916,-1000.0,0.00020021,2]
[378577031,1754915463926,-1000.0,0.00020021,2]
[378577032,1754915463936,-505.1922163,0.00020021,2]
[378577033,1754915463946,-1000.0,0.00020021,2]
[378577034,1754915463958,-1000.0,0.00020021,2]
[378577035,1754915463968,-1000.0,0.00020021,2]
[378577036,1754915463978,-430.02938,0.00020021,2]
[378577037,1754915463988,-430.02938,0.00020021,2]
[378577038,1754915463999,-151.0,0.00020044,2]
[378577039,1754915464009,-460.0,0.00020084,2]
[378577040,1754915464020,-460.0,0.00020084,2]
[378577041,1754915464029,-460.0,0.00020085,2]
[378577042,1754915464039,-473.75,0.00020085,2]
[378577043,1754915464049,-734.57,0.00020085,2]
[378577044,1754915464059,-2255.65,0.00020085,2]
[378577045,1754915464068,-460.0,0.00020085,2]
[378577046,1754915464077,-833.49,0.00020085,2]
[378577047,1754915464087,-460.0,0.00020085,2]
[378577048,1754915464097,-460.0,0.00020085,2]
[378577049,1754915464108,-460.0,0.00020085,2]
[378577050,1754915464117,-640.85,0.00020085,2]
[378577051,1754915464127,-165.0,0.0002011,3]
[378577052,1754915464137,-175.37584,0.00020115,2]
[378577053,1754915464146,-175.37584,0.00020115,2]
[378577054,1754915464156,-460.0,0.00020115,2]
[378577055,1754915464165,-460.0,0.00020115,2]
[378577056,1754915464174,-402.053,0.00020115,2]
[378577057,1754915464184,-460.0,0.00020115,2]
[378577058,1754915464193,-402.053,0.00020115,2]
[378577059,1754915464203,-460.0,0.00020115,2]
[378577060,1754915464212,-151.0,0.00020115,2]
[378577061,1754915464222,-151.0,0.00020115,2]
[378577062,1754915464231,-151.0,0.00020115,2]
[378577063,1754915464241,-234.411761,0.00020115,2]
[378577064,1754915464250,-234.411761,0.00020115,2]
[378577065,1754915464259,-981.78,0.00020115,2]
[378577066,1754915464269,-460.0,0.00020115,2]
[378577067,1754915464279,-3530.64,0.00020115,2]
[378577068,1754915464288,-460.0,0.00020115,2]
[378577069,1754915464297,-460.0,0.00020115,2]
[378577070,1754915464307,-151.0,0.00020115,2]
[378577071,1754915464317,-151.0,0.00020115,2]
[378577072,1754915464327,-547.92995498,0.00020115,2]
[378577073,1754915464336,-151.0,0.00020115,2]
[378577074,1754915464346,-3544.45,0.00020115,2]
[378577075,1754915464356,-151.0,0.00020115,2]
[378577076,1754915464365,-460.0,0.00020115,2]
[378577077,1754915464375,-151.0,0.00020116,2]
[378577078,1754915464384,-151.0,0.00020116,2]
[378577079,1754915464393,-151.0,0.00020116,2]
[378577080,1754915464403,-151.0,0.00020116,2]
[378577081,1754915464412,-151.0,0.00020116,2]
[378577082,1754915464422,-151.0,0.00020116,2]
[378577083,1754915464432,-151.0,0.00020116,2]
[378577084,1754915464442,-151.0,0.00020117,2]
[378577085,1754915464452,-151.0,0.00020117,2]
[378577086,1754915464462,-151.0,0.00020117,2]
[378577087,1754915464472,-200.325782,0.00020117,2]
[378577088,1754915464481,-200.325782,0.00020117,2]
[378577089,1754915464490,-320.834265,0.00020144,2]
[378577090,1754915464500,-320.834265,0.00020144,2]
[378577091,1754915464510,-151.0,0.00020144,2]
[378577092,1754915464519,-160.0,0.00020152,2]
[378577093,1754915464528,-151.0,0.00020154,2]
[378577094,1754915464538,-151.0,0.00020154,2]
[378577095,1754915464547,-549.59544197,0.00020154,2]
[378577096,1754915464557,-2198.38176789,0.00020154,2]
[378577097,1754915464567,-4941.41261878,0.00020154,2]
[378577098,1754915464577,-152.2224,0.00020154,2]
[378577099,1754915464587,-373.78256591,0.00020154,2]
[378577100,1754915464596,-1495.13026364,0.00020154,2]
[378577101,1754915464607,-3364.04309318,0.00020154,2]
[378577102,1754915464617,-5980.52105455,0.00020154,2]
[378577103,1754915464626,-209.829137,0.00020154,2]
[378577104,1754915464638,-151.0,0.00020154,2]
[378577105,1754915464647,-564.60065946,0.00020154,2]
[378577106,1754915464657,-9344.56414773,0.00020154,2]
[378577107,1754915464667,-266.471175,0.00020154,2]
[378577108,1754915464676,-266.471175,0.00020154,2]
[378577109,1754915464685,-151.0,0.00020154,2]
[378577110,1754915464695,-151.0,0.00020157,2]
[378577111,1754915464704,-154.618328,0.00020157,2]
[378577112,1754915464714,-500.0,0.0002016,2]
[378577113,1754915464724,-151.0,0.00020164,2]
[378577114,1754915464733,-151.0,0.00020164,2]
[378577115,1754915464743,-1880.417424,0.00020164,2]
[378577116,1754915464752,-1880.417424,0.00020164,2]
[378577117,1754915464763,-159.63872,0.00020171,2]
[378577118,1754915464830,-159.63872,0.00020171,2]
[378577119,1754915464840,-474.670673,0.00020171,2]
[378577120,1754915464849,-474.670673,0.00020171,2]
[378577121,1754915464862,-151.0,0.00020171,2]
[378577122,1754915464871,-500.0,0.00020173,2]
[378577123,1754915464880,-500.0,0.00020173,2]
[378577124,1754915464889,-500.0,0.00020173,2]
[378577125,1754915464899,-500.0,0.00020173,2]
[378577126,1754915464908,-500.0,0.00020173,2]
[378577127,1754915464922,-500.0,0.00020173,2]
[378577128,1754915464931,-500.0,0.00020173,2]
[378577129,1754915464940,-500.0,0.00020173,2]
[378577130,1754915464950,-151.0,0.00020173,2]
[378577131,1754915464960,-151.0,0.00020173,2]
[378577132,1754915464970,-151.0,0.00020173,2]
[378577133,1754915464979,-151.0,0.00020173,2]
[378577134,1754915464990,-151.0,0.00020173,2]
[378577135,1754915464999,-569.87475365,0.00020186,2]
[378577136,1754915465009,-460.0,0.00020186,2]
[378577137,1754915465018,-630.86,0.00020186,2]
[378577138,1754915465028,-328.20898188,0.00020186,2]
[378577139,1754915465038,-1196.72,0.00020186,2]
[378577140,1754915465049,-460.0,0.00020186,2]
[378577141,1754915465059,-946.78,0.00020186,2]
[378577142,1754915465070,-471.82039472,0.00020186,2]
[378577143,1754915465079,-1710.84,0.00020186,2]
[378577144,1754915465089,-460.0,0.00020186,2]
[378577145,1754915465098,-460.0,0.00020186,2]
[378577146,1754915465109,-460.0,0.00020186,2]
[378577147,1754915465118,-460.0,0.00020186,2]
[378577148,1754915465128,-598.72,0.00020186,2]
[378577149,1754915465138,-460.58,0.00020186,2]
[378577150,1754915465147,-460.0,0.00020186,2]
[378577151,1754915465157,-460.0,0.00020186,2]
[378577152,1754915465167,-921.45,0.00020186,2]
[378577153,1754915465177,-748.92,0.00020186,2]
[378577154,1754915465187,-850.26,0.00020186,2]
[378577155,1754915465196,-4482.68,0.00020186,2]
[378577156,1754915465206,-460.0,0.00020186,2]
[378577157,1754915465215,-1483.35,0.00020186,2]
[378577158,1754915465224,-1463.21,0.00020186,2]
[378577159,1754915465233,-460.0,0.00020186,2]
[378577160,1754915465243,-460.0,0.00020186,2]
[378577161,1754915465252,-895.48,0.00020186,2]
[378577162,1754915465261,-1358.73,0.00020186,2]
[378577163,1754915465270,-460.0,0.00020186,2]
[378577164,1754915465279,-460.0,0.00020186,2]
[378577165,1754915465288,-1841.88,0.00020186,2]
[378577166,1754915465299,-652.01,0.00020186,2]
[378577167,1754915465308,-460.0,0.00020186,2]
[378577168,1754915465317,-460.0,0.00020186,2]
[378577169,1754915465327,-460.0,0.00020186,2]
[378577170,1754915465335,-460.0,0.00020186,2]
[378577171,1754915465345,-460.0,0.00020186,2]
[378577172,1754915465356,-460.0,0.00020186,2]
[378577173,1754915465366,-4095.6,0.00020186,2]
[378577174,1754915465375,-460.0,0.00020186,2]
[378577175,1754915465385,-460.0,0.00020186,2]
[378577176,1754915465394,-460.0,0.00020186,2]
[378577177,1754915465404,-460.0,0.00020186,2]
[378577178,1754915465413,-580.82,0.00020186,2]
[378577179,1754915465422,-1180.53,0.00020186,2]
[378577180,1754915465431,-759.5,0.00020186,2]
[378577181,1754915465441,-460.0,0.00020186,2]
[378577182,1754915465450,-970.55,0.00020186,2]
[378577183,1754915465459,-589.71,0.00020186,2]
[378577184,1754915465468,-460.0,0.00020186,2]
[378577185,1754915465476,-460.0,0.00020186,2]
[378577186,1754915465486,-460.0,0.00020186,2]
[378577187,1754915465495,-3459.58,0.00020186,2]
[378577188,1754915465504,-460.0,0.00020186,2]
[378577189,1754915465513,-529.01,0.00020186,2]
[378577190,1754915465523,-1133.76,0.00020186,2]
[378577191,1754915465532,-978.71,0.00020186,2]
[378577192,1754915465541,-460.0,0.00020186,2]
[378577193,1754915465551,-1320.55,0.00020186,2]
[378577194,1754915465560,-460.0,0.00020186,2]
[378577195,1754915465569,-1249.33,0.00020186,2]
[378577196,1754915465578,-811.41,0.00020186,2]
[378577197,1754915465588,-462.74575134,0.00020186,2]
[378577198,1754915465597,-862.89,0.00020186,2]
[378577199,1754915465607,-460.0,0.00020186,2]
[378577200,1754915465617,-460.0,0.00020186,2]
[378577201,1754915465626,-151.0,0.00020186,2]
[378577202,1754915465635,-460.0,0.00020186,2]
[378577203,1754915465644,-837.92,0.00020186,2]
[378577204,1754915465654,-472.02,0.00020186,2]
[378577205,1754915465663,-762.8,0.00020186,2]
[378577206,1754915465672,-957.96,0.00020186,2]
[378577207,1754915465681,-460.0,0.00020186,2]
[378577208,1754915465691,-463.07612979,0.00020186,2]
[378577209,1754915465699,-1016.89,0.00020186,2]
[378577210,1754915465708,-460.0,0.00020186,2]
[378577211,1754915465717,-460.0,0.00020186,2]
[378577212,1754915465727,-650.21,0.00020186,2]
[378577213,1754915465736,-210.13515462,0.00020186,2]
[378577214,1754915465745,-558.25,0.00020186,2]
[378577215,1754915465755,-460.0,0.00020186,2]
[378577216,1754915465765,-5548.83,0.00020186,2]
[378577217,1754915465774,-460.0,0.00020186,2]
[378577218,1754915465783,-460.0,0.00020186,2]
[378577219,1754915465793,-1196.35,0.00020186,2]
[378577220,1754915465803,-460.0,0.00020186,2]
[378577221,1754915465812,-502.52578215,0.00020186,2]
[378577222,1754915465821,-1053.1,0.00020186,2]
[378577223,1754915465830,-460.0,0.00020186,2]